bitfinex-derivatives/quotes_BNBF0:USTF0_20241231
["timestamp","ask_amount","ask_price","bid_price","bid_amount"]
[1735665476879,0.2590303,710.84,709.89,1.05251144]
[1735665478081,0.2590303,710.84,709.92,1.05251144]
[1735665479589,0.25903061,710.83,709.92,1.05251144]
[1735665479787,0.25903061,710.82,709.92,1.05251144]
[1735665479983,0.25903061,710.81,709.92,1.05251144]
[1735665480182,0.25903061,710.8,709.92,1.05251144]
[1735665480484,1.04833133,710.84,709.93,1.05251144]
[1735665480686,0.25903142,710.83,709.93,1.05251144]
[1735665481292,1.04833133,710.84,709.93,1.05251144]
[1735665481492,0.25903461,710.83,709.93,1.05251144]
[1735665482092,0.25903787,710.82,709.93,1.05251144]
[1735665482390,0.25903787,710.81,709.93,1.05251144]
[1735665482587,0.25903787,710.8,709.93,1.05251144]
[1735665482793,0.4,710.85,709.92,1.05251144]
[1735665482794,0.25903787,710.79,709.92,1.05251144]
[1735665482992,1.04833133,710.83,709.92,1.05251144]
[1735665483694,0.4,710.85,709.77,1.05251144]
[1735665485995,0.28134935,710.86,709.77,1.05251144]
[1735665486995,0.28134935,710.86,709.74,1.05251144]
[1735665487194,0.4,710.85,709.74,1.05251144]
[1735665487893,0.4,710.85,709.73,1.05251144]
[1735665489294,0.4,710.85,709.68,1.05251144]
[1735665490405,0.4,710.85,709.7,1.05251144]
[1735665491396,0.4,710.85,709.72,1.05251144]
[1735665492396,0.4,710.85,709.79,1.05251144]
[1735665493099,0.4,710.85,709.86,1.05251144]
[1735665495502,0.4,710.85,709.31,1.26301372]
[1735665495503,0.4,710.85,709.59,1.05251144]
[1735665496905,0.4,710.85,709.57,1.05251144]
[1735665497908,0.4,710.85,709.58,1.05251144]
[1735665498802,0.4,710.85,709.57,1.05251144]
[1735665500107,0.4,710.85,709.61,1.05251144]
[1735665501309,0.4,710.85,709.62,1.05251144]
[1735665502710,0.4,710.85,709.24,1.05251144]
[1735665504815,0.4,710.85,709.28,1.05251144]
[1735665507219,0.4,710.85,709.23,1.05251144]
[1735665508518,0.4,710.85,708.97,1.05251144]
[1735665508519,0.25908913,710.84,709.35,1.05251144]
[1735665509320,0.25908913,710.84,709.61,1.05251144]
[1735665510319,0.25908913,710.83,709.61,1.05251144]
[1735665510519,0.25908913,710.82,709.61,1.05251144]
[1735665510820,0.25908739,710.81,709.61,1.05251144]
[1735665511014,0.25908739,710.8,709.61,1.05251144]
[1735665511215,0.25908739,710.79,709.6,1.05251144]
[1735665511415,0.4,710.79,709.6,1.05251144]
[1735665511617,1.72910117,710.78,709.6,1.05251144]
[1735665511920,1.47001362,710.78,709.6,1.05251144]
[1735665513515,1.47001362,710.78,709.36,1.05251144]
[1735665513516,1.47001362,710.78,709.61,1.05251144]
[1735665515817,0.25909279,710.77,709.61,1.05251144]
[1735665516018,1.47001362,710.78,709.61,1.05251144]
[1735665516821,1.47001362,710.78,709.6,1.05251144]
[1735665517223,0.25908,710.77,709.6,1.05251144]
[1735665518021,0.25908,710.77,709.7,1.05251144]
[1735665518716,0.25907757,710.76,709.7,1.05251144]
[1735665518921,0.25907757,710.75,709.7,1.05251144]
[1735665519122,0.25907757,710.74,709.73,1.05251144]
[1735665519325,0.25907757,710.73,709.73,1.05251144]
[1735665519524,0.25907757,710.72,709.73,1.05251144]
[1735665519725,0.4,710.79,709.73,1.05251144]
[1735665520117,0.4,710.79,709.77,1.05251144]
[1735665521321,0.4,710.79,709.82,1.05251144]
[1735665522722,0.4,710.79,709.85,1.05251144]
[1735665523927,0.4,710.79,709.83,1.05251144]
[1735665525125,0.4,710.79,709.79,1.05251144]
[1735665526330,0.4,710.79,709.77,1.05251144]
[1735665527628,0.4,710.79,709.75,1.05251144]
[1735665528534,0.4,710.79,709.76,1.05251144]
[1735665529432,0.28134935,710.86,709.76,1.05251144]
[1735665529830,0.28134935,710.86,709.73,1.05251144]
[1735665530534,0.399,710.85,709.73,1.05251144]
[1735665530835,0.399,710.85,709.75,1.05251144]
[1735665531838,0.399,710.85,709.76,1.05251144]
[1735665533934,0.399,710.85,709.71,1.05251144]
[1735665534140,0.399,710.85,709.72,0.28180127]
[1735665543841,0.399,710.85,709.74,1.05251144]
[1735665545140,0.399,710.85,709.76,1.05251144]
[1735665545539,0.28134935,710.86,709.76,1.05251144]
[1735665546041,0.28134935,710.86,709.77,1.05251144]
[1735665546838,0.399,710.85,709.77,1.05251144]
[1735665547439,0.399,710.85,709.78,1.05251144]
[1735665548537,0.399,710.85,709.8,1.05251144]
[1735665549537,0.399,710.85,709.9,1.05251144]
[1735665550542,0.399,710.85,709.92,1.05251144]
[1735665552047,0.399,710.85,709.9,1.05251144]
[1735665553047,0.399,710.85,710.0,1.05251144]
[1735665554249,0.399,710.85,710.02,1.05251144]
[1735665555046,0.399,710.85,710.01,1.05251144]
[1735665556248,0.399,710.85,709.99,1.05251144]
[1735665557445,0.399,710.85,709.73,0.68203819]
[1735665557446,0.399,710.85,710.0,1.05251144]
[1735665558548,0.399,710.85,710.06,1.05251144]
[1735665559864,0.399,710.85,710.04,1.05251144]
[1735665561050,0.399,710.85,710.06,1.05251144]
[1735665562848,0.399,710.85,710.07,1.05251144]
[1735665563953,0.399,710.85,710.05,1.05251144]
[1735665565554,0.399,710.85,709.73,0.68203819]
[1735665565555,0.399,710.85,710.1,1.05251144]
[1735665566958,0.399,710.85,710.24,1.05251144]
[1735665568256,0.399,710.85,709.73,0.68203819]
[1735665568257,0.399,710.85,710.2,1.05251144]
[1735665569254,0.399,710.85,710.17,1.05251144]
[1735665570758,0.399,710.85,710.16,1.05251144]
[1735665571754,0.399,710.85,710.11,1.05251144]
[1735665572758,0.399,710.85,710.13,1.05251144]
[1735665573656,0.399,710.85,710.1,1.05251144]
[1735665573855,1.46901042,711.31,710.1,1.05251144]
[1735665574055,0.25889058,711.3,710.1,1.05251144]
[1735665574759,0.25889058,711.3,710.18,1.05251144]
[1735665575058,0.399,711.29,710.18,1.05251144]
[1735665575259,0.25889058,711.28,710.18,1.05251144]
[1735665575961,0.51777374,711.27,710.14,1.05251144]
[1735665576158,0.25888687,711.26,710.14,1.05251144]
[1735665577064,0.25888687,711.26,710.12,1.05251144]
[1735665578465,0.25888687,711.26,710.09,1.05251144]
[1735665578665,0.25888687,711.27,710.09,1.05251144]
[1735665578964,0.25889061,711.26,710.09,1.05251144]
[1735665579165,0.25888687,711.27,710.09,1.05251144]
[1735665579366,0.25888687,711.27,710.08,1.05251144]
[1735665580665,0.25888386,711.26,710.08,1.05251144]
[1735665580968,0.25888386,711.26,709.82,1.45204156]
[1735665580969,0.25888687,711.27,710.09,1.05251144]
[1735665581560,0.25887572,711.26,710.09,1.05251144]
[1735665581962,0.25886871,711.25,710.09,1.05251144]
[1735665582160,0.25888687,711.27,710.09,1.05251144]
[1735665582366,0.25888687,711.27,709.86,1.45204156]
[1735665582367,0.25888151,711.26,710.12,1.05251144]
[1735665582964,0.25886925,711.28,710.12,1.05251144]
[1735665583168,0.399,711.29,710.12,1.05251144]
[1735665583369,0.25886843,711.28,710.1,1.05251144]
[1735665583770,0.399,711.29,710.1,1.05251144]
[1735665583970,0.25886869,711.28,710.1,1.05251144]
[1735665584470,0.399,711.29,710.1,1.05251144]
[1735665584671,0.25886945,711.28,710.12,1.05251144]
[1735665585672,0.25886945,711.28,704.05,7.4229]
[1735665585673,0.25886945,711.28,710.06,1.05251144]
[1735665586468,0.399,711.29,710.06,1.05251144]
[1735665586776,0.25892594,711.28,709.95,1.05251144]
[1735665587974,0.25892594,711.28,709.96,1.05251144]
[1735665589073,0.54010915,711.28,709.96,1.05251144]
[1735665589273,0.25892594,711.27,709.96,1.05251144]
[1735665591578,0.28118321,711.28,709.96,1.05251144]
[1735665591771,0.25891906,711.27,709.96,1.05251144]
[1735665592368,0.28118321,711.28,709.96,1.05251144]
[1735665592573,0.25893123,711.27,709.96,1.05251144]
[1735665594079,0.28119112,711.26,709.94,1.05251144]
[1735665594476,0.25895193,711.25,709.94,1.05251144]
[1735665594678,0.28119903,711.24,709.94,1.05251144]
[1735665594876,0.25895193,711.23,709.94,1.05251144]
[1735665595280,1.46931021,711.22,709.9,1.05251144]
[1735665595576,0.25895193,711.21,709.9,1.05251144]
[1735665596878,1.46931021,711.22,709.9,1.05251144]
[1735665597174,0.25895593,711.21,709.9,1.05251144]
[1735665597576,0.25895593,711.21,709.92,1.05251144]
[1735665598981,0.25895593,711.21,709.94,1.05251144]
[1735665599783,1.46931021,711.22,709.94,1.05251144]
[1735665599982,0.25894626,711.21,709.91,1.05251144]
[1735665600277,0.2589525,711.2,709.91,1.05251144]
[1735665600476,1.46931021,711.22,709.91,1.05251144]
[1735665600678,0.25894836,711.21,709.91,1.05251144]
[1735665601081,0.25894836,711.21,709.93,1.05251144]
[1735665601483,0.2589617,711.2,709.93,1.05251144]
[1735665601683,0.2589617,711.19,709.93,1.05251144]
[1735665601981,0.25895642,711.18,709.93,1.05251144]
[1735665602182,0.25895642,711.17,709.93,1.05251144]
[1735665602382,1.46931021,711.22,709.93,1.05251144]
[1735665602583,0.25896158,711.21,709.89,1.05251144]
[1735665603483,0.25896158,711.21,709.88,1.05251144]
[1735665604182,0.25896177,711.2,709.88,1.05251144]
[1735665604382,0.25896177,711.19,709.88,1.05251144]
[1735665604585,0.25896177,711.18,709.88,1.05251144]
[1735665604783,0.25896177,711.17,709.9,1.05251144]
[1735665604985,0.25896177,711.16,709.9,1.05251144]
[1735665605186,1.46931021,711.22,709.9,1.05251144]
[1735665605484,0.25895104,711.21,709.9,1.05251144]
[1735665605685,0.25895104,711.21,709.89,1.05251144]
[1735665606284,0.399,711.2,709.89,1.05251144]
[1735665606584,0.25895104,711.19,709.89,1.05251144]
[1735665606780,0.399,711.2,709.89,1.05251144]
[1735665606991,0.399,711.2,709.91,1.05251144]
[1735665607989,0.399,711.2,709.99,1.05251144]
[1735665608481,0.258917,711.19,709.99,1.05251144]
[1735665609087,0.258917,711.19,710.0,1.05251144]
[1735665609387,0.25891864,711.18,710.0,1.05251144]
[1735665609587,0.25891864,711.17,710.0,1.05251144]
[1735665609888,0.399,711.2,710.0,1.05251144]
[1735665610388,0.399,711.2,710.11,1.05251144]
[1735665611786,0.399,711.2,709.8,1.05251144]
[1735665612889,0.399,711.2,709.81,1.05251144]
[1735665613889,0.399,711.2,709.72,0.28180127]
[1735665613890,0.399,711.2,709.85,1.05251144]
[1735665614591,0.399,711.2,709.87,1.05251144]
[1735665615893,0.399,711.2,709.85,1.05251144]
[1735665616694,0.399,711.2,709.74,1.05251144]
[1735665617386,0.25897971,711.19,709.75,0.28178936]
[1735665617587,0.399,711.2,709.75,0.28178936]
[1735665617787,0.25898467,711.19,709.75,0.28178936]
[1735665617988,0.25898467,711.19,709.82,1.05251144]
[1735665618385,0.399,711.2,709.82,1.05251144]
[1735665618988,0.25898252,711.19,709.82,1.05251144]
[1735665619192,0.399,711.2,709.85,1.05251144]
[1735665619386,0.25898288,711.19,709.85,1.05251144]
[1735665619792,0.399,711.2,709.85,1.05251144]
[1735665620095,0.399,711.2,709.86,1.05251144]
[1735665621300,1.44733133,711.2,709.85,1.05251144]
[1735665621495,0.25898269,711.19,709.85,1.05251144]
[1735665622016,1.44733133,711.2,709.85,1.05251144]
[1735665622301,1.04833133,711.19,709.84,1.05251144]
[1735665622601,0.25898313,711.18,709.84,1.05251144]
[1735665622799,1.04833133,711.19,709.84,1.05251144]
[1735665622997,0.25899451,711.18,709.84,1.05251144]
[1735665623602,0.25899451,711.18,709.96,1.05251144]
[1735665623603,1.04833133,711.06,709.96,1.05251144]
[1735665623801,0.25899451,711.05,709.96,1.05251144]
[1735665624201,1.46945497,711.04,709.96,1.05251144]
[1735665624402,0.65799451,711.03,709.96,1.05251144]
[1735665624603,0.25899451,711.02,709.96,1.05251144]
[1735665624897,0.25899451,711.02,709.94,1.05251144]
[1735665625601,0.25900197,711.01,709.94,1.05251144]
[1735665625801,0.25900197,711.0,709.94,1.05251144]
[1735665625997,0.25900197,710.99,709.94,1.05251144]
[1735665626197,0.399,711.03,709.92,1.05251144]
[1735665627202,0.399,711.03,709.85,1.05251144]
[1735665628296,0.399,711.03,709.75,0.28178936]
[1735665628297,0.399,711.03,709.86,1.05251144]
[1735665629403,0.399,711.03,709.83,1.05251144]
[1735665630304,0.399,711.03,709.8,1.05251144]
[1735665631506,0.399,711.03,709.79,1.05251144]
[1735665632400,0.25895941,711.02,709.79,1.05251144]
[1735665632601,0.399,711.03,709.83,1.05251144]
[1735665633303,0.399,711.03,709.84,0.28175363]
[1735665633605,0.399,711.03,710.11,1.05251144]
[1735665634604,0.399,711.03,710.13,1.05251144]
[1735665638111,0.399,711.03,710.12,1.05251144]
[1735665639413,0.399,711.03,710.11,1.05251144]
[1735665642016,0.399,711.03,709.84,1.33426507]
[1735665642017,0.399,711.03,710.13,1.05251144]
[1735665643316,0.399,711.03,710.09,1.05251144]
[1735665644314,0.399,711.03,710.08,1.05251144]
[1735665645322,0.399,711.03,710.09,1.05251144]
[1735665645519,0.25896404,711.02,710.09,1.05251144]
[1735665646723,0.399,711.03,710.0,1.05251144]
[1735665646918,0.25896424,711.02,710.0,1.05251144]
[1735665647519,0.25897218,711.01,709.99,1.05251144]
[1735665647718,0.399,711.03,709.99,1.05251144]
[1735665648619,1.04833133,711.12,709.99,1.05251144]
[1735665648820,0.25893618,711.11,710.01,1.05251144]
[1735665649020,0.25893618,711.1,710.01,1.05251144]
[1735665649318,0.25893618,711.09,710.01,1.05251144]
[1735665649520,0.25893618,711.15,710.01,1.05251144]
[1735665649720,0.65793618,711.14,710.01,1.05251144]
[1735665649917,0.25893618,711.13,710.01,1.05251144]
[1735665650118,0.25893618,711.13,710.12,1.05251144]
[1735665651022,0.25893618,711.13,710.09,1.05251144]
[1735665652222,0.25893618,711.13,710.06,1.05251144]
[1735665653220,0.25893618,711.13,710.04,1.05251144]
[1735665655925,0.25893618,711.13,710.01,1.05251144]
[1735665656123,0.399,711.14,710.01,1.05251144]
[1735665656825,0.399,711.14,710.02,1.05251144]
[1735665658126,0.399,711.14,709.84,0.28175363]
[1735665658127,0.399,711.14,710.05,1.05251144]
[1735665659424,0.399,711.14,710.06,1.05251144]
[1735665660425,0.399,711.14,710.07,1.05251144]
[1735665660927,0.25893927,711.13,710.07,1.05251144]
[1735665661126,0.399,711.14,710.07,1.05251144]
[1735665661325,0.2589406,711.13,710.07,1.05251144]
[1735665661725,1.46917581,711.16,710.07,1.05251144]
[1735665661923,0.25894182,711.15,710.08,1.05251144]
[1735665662829,0.398,711.14,710.08,1.05251144]
[1735665663029,0.25894182,711.13,710.09,1.05251144]
[1735665664425,0.398,711.14,710.09,1.05251144]
[1735665664622,0.398,711.14,709.84,0.28175363]
[1735665664623,1.04833133,711.1,710.06,1.05251144]
[1735665664829,0.25896451,711.09,710.06,1.05251144]
[1735665665529,1.46933088,711.08,710.06,1.05251144]
[1735665665726,0.25896451,711.07,710.06,1.05251144]
[1735665665926,1.46933088,711.08,710.06,1.05251144]
[1735665666127,1.04833133,711.04,710.08,1.05251144]
[1735665666327,0.25897393,711.03,710.08,1.05251144]
[1735665667233,1.04833133,711.01,710.11,1.05251144]
[1735665667431,0.25897393,711.0,710.11,1.05251144]
[1735665668631,0.25897393,711.0,709.92,1.05251144]
[1735665668632,0.25897393,711.0,710.1,1.05251144]
[1735665669733,0.25899017,710.99,710.09,1.05251144]
[1735665669934,0.25899017,710.98,710.09,1.05251144]
[1735665670133,0.25899017,710.97,710.09,1.05251144]
[1735665670329,1.04833133,711.01,710.09,1.05251144]
[1735665670529,0.25899422,711.0,710.09,1.05251144]
[1735665670934,1.04833133,710.97,710.01,1.05251144]
[1735665671134,0.25899422,710.96,710.01,1.05251144]
[1735665671838,1.04833133,711.0,709.99,1.05251144]
[1735665673140,2.51766221,711.08,709.91,1.05251144]
[1735665673438,0.25899852,711.07,709.91,1.05251144]
[1735665674941,0.25899498,711.06,709.91,1.05251144]
[1735665675139,0.25899498,711.05,709.91,1.05251144]
[1735665675339,0.25899498,711.04,709.91,1.05251144]
[1735665675640,0.25899498,711.03,709.9,1.05251144]
[1735665675837,1.46933088,711.08,709.9,1.05251144]
[1735665676050,0.25899897,711.07,709.9,1.05251144]
[1735665676443,1.46933088,711.08,709.9,1.05251144]
[1735665676743,0.25900008,711.07,709.88,1.05251144]
[1735665677542,1.46933088,711.08,709.88,1.05251144]
[1735665677743,0.2590174,711.07,709.88,1.05251144]
[1735665677942,0.2590174,711.07,709.84,0.28175363]
[1735665677943,1.04833133,711.06,709.85,1.05251144]
[1735665678143,0.2590174,711.05,709.85,1.05251144]
[1735665678943,1.30734873,711.05,709.84,0.28175363]
[1735665679139,0.2590174,711.04,709.84,0.28175363]
[1735665681847,0.2590174,711.03,709.84,0.28175363]
[1735665682047,0.2590174,711.02,709.84,0.28175363]
[1735665682247,0.2590174,711.01,709.84,0.28175363]
[1735665682447,0.2590174,711.0,709.84,0.28175363]
[1735665682648,0.2590174,710.99,709.86,1.05251144]
[1735665682849,0.2590174,710.98,709.86,1.05251144]
[1735665683047,0.25906409,710.97,709.86,1.05251144]
[1735665683243,0.25906409,710.96,709.86,1.05251144]
[1735665683547,0.25906409,710.95,709.86,1.05251144]
[1735665683749,0.25906409,710.94,709.86,1.05251144]
[1735665683963,1.30739542,710.93,709.84,0.28175363]
[1735665684152,0.25906409,710.92,709.84,0.28175363]
[1735665685254,0.398,710.91,709.84,0.28175363]
[1735665685454,0.25906409,710.9,709.84,0.28175363]
[1735665686256,0.25906651,710.89,709.84,0.28175363]
[1735665686449,0.25906651,710.88,709.84,0.28175363]
[1735665686653,0.25906651,710.87,709.84,0.28175363]
[1735665686853,0.25906651,710.86,709.84,0.28175363]
[1735665687054,0.25906651,710.85,709.84,0.28175363]
[1735665687274,0.25906651,710.84,709.84,0.28175363]
[1735665687455,0.398,710.91,709.84,0.28175363]
[1735665687456,0.25906651,710.83,709.84,0.28175363]
[1735665687654,0.25906651,710.82,709.84,0.28175363]
[1735665687849,0.25906651,710.81,709.84,0.28175363]
[1735665688056,0.25906651,710.8,709.84,0.28175363]
[1735665688252,0.25911358,710.79,709.84,0.28175363]
[1735665688458,0.398,710.91,709.84,0.28175363]
[1735665688459,0.25911358,710.78,709.84,0.28175363]
[1735665688757,0.25911358,710.77,709.84,0.28175363]
[1735665688954,0.25911358,710.76,709.59,1.05251144]
[1735665689154,0.25911358,710.75,709.59,1.05251144]
[1735665689355,0.25911358,710.74,709.59,1.05251144]
[1735665689550,0.25911358,710.73,709.59,1.05251144]
[1735665689756,0.25911358,710.72,709.38,1.05251144]
[1735665689960,0.25911358,710.71,709.38,1.05251144]
[1735665690156,0.25911358,710.7,709.38,1.05251144]
[1735665690459,0.25911358,710.69,709.38,1.05251144]
[1735665690757,0.25911358,710.68,709.33,1.05251144]
[1735665691051,0.25911358,710.67,709.34,0.28195223]
[1735665691255,0.25911358,710.66,709.34,0.28195223]
[1735665691449,0.25911358,710.65,709.34,0.28195223]
[1735665691655,0.25911358,710.64,709.34,0.28195223]
[1735665691858,0.25911358,710.63,709.35,1.05251144]
[1735665692058,0.25911358,710.62,709.35,1.05251144]
[1735665692252,1.44633133,710.91,709.35,1.05251144]
[1735665692456,0.25912577,710.9,709.35,1.05251144]
[1735665692657,0.28133747,710.89,709.35,1.05251144]
[1735665692856,0.25912577,710.88,709.35,1.05251144]
[1735665693260,0.28134539,710.87,709.35,1.05251144]
[1735665693460,0.25911978,710.86,709.34,0.28195223]
[1735665693760,0.2813533,710.85,709.34,0.28195223]
[1735665693957,0.25911978,710.84,709.34,0.28195223]
[1735665694362,0.25911978,710.84,709.34,1.33446367]
[1735665694556,0.28136122,710.83,709.34,1.33446367]
[1735665694760,0.25911978,710.82,709.34,1.33446367]
[1735665695056,0.28136914,710.81,709.34,1.33446367]
[1735665695262,0.25911978,710.8,709.34,0.28195223]
[1735665697263,0.25911978,710.8,709.34,1.33446367]
[1735665698561,0.25911978,710.8,709.34,0.28195223]
[1735665701455,0.54049288,710.8,709.34,0.28195223]
[1735665701653,0.25911978,710.79,709.34,0.28195223]
[1735665703565,1.47036041,710.78,709.34,0.28195223]
[1735665703774,0.25911978,710.77,709.34,0.28195223]
[1735665704166,0.25912798,710.76,709.34,0.28195223]
[1735665704369,0.25912798,710.75,709.34,0.28195223]
[1735665704667,0.25912798,710.74,709.34,0.28195223]
[1735665704870,0.25912798,710.73,709.34,0.28195223]
[1735665705164,0.25912798,710.72,709.34,0.28195223]
[1735665705364,0.25912798,710.71,709.34,0.28195223]
[1735665705569,0.25912798,710.7,709.34,0.28195223]
[1735665705769,0.25912798,710.69,709.34,0.28195223]
[1735665705970,0.25912798,710.68,709.34,0.28195223]
[1735665706269,0.25912798,710.67,709.34,0.28195223]
[1735665706469,0.25912798,710.66,709.34,0.28195223]
[1735665706670,1.47036041,710.78,709.34,0.28195223]
[1735665706870,0.25912755,710.77,709.34,0.28195223]
[1735665709268,1.47036041,710.78,709.34,0.28195223]
[1735665709570,0.25913131,710.77,709.34,0.28195223]
[1735665710672,0.25913131,710.77,709.35,1.05251144]
[1735665711874,0.25913131,710.77,709.34,0.28195223]
[1735665711875,0.25913131,710.77,709.42,1.05251144]
[1735665712073,1.47036041,710.78,709.42,1.05251144]
[1735665712274,0.2591378,710.77,709.42,1.05251144]
[1735665712981,1.04833133,710.76,709.44,1.05251144]
[1735665713274,0.2591378,710.75,709.44,1.05251144]
[1735665713973,1.04833133,710.73,709.48,1.05251144]
[1735665714268,0.2591378,710.72,709.48,1.05251144]
[1735665714870,0.25914366,710.71,709.48,1.05251144]
[1735665715175,0.25914366,710.7,709.5,1.05251144]
[1735665715475,0.398,710.69,709.5,1.05251144]
[1735665715670,0.25914366,710.68,709.5,1.05251144]
[1735665715874,0.398,710.69,709.5,1.05251144]
[1735665716377,0.25913698,710.68,709.41,1.05251144]
[1735665716876,0.398,710.69,709.41,1.05251144]
[1735665717071,0.25913492,710.68,709.41,1.05251144]
[1735665717276,0.398,710.69,709.41,1.05251144]
[1735665717478,0.25913547,710.68,709.44,1.05251144]
[1735665717677,0.398,710.69,709.44,1.05251144]
[1735665717977,0.25913304,710.68,709.44,1.05251144]
[1735665718477,0.25913304,710.68,709.5,1.05251144]
[1735665719070,0.398,710.69,709.5,1.05251144]
[1735665719273,0.25913595,710.68,709.5,1.05251144]
[1735665719779,0.398,710.69,709.5,1.05251144]
[1735665720179,0.25914161,710.68,709.5,1.05251144]
[1735665720480,0.398,710.69,709.5,1.05251144]
[1735665722078,1.04833133,710.68,709.53,1.05251144]
[1735665722980,1.04833133,710.64,709.58,1.05251144]
[1735665724380,1.04833133,710.63,709.58,1.05251144]
[1735665725081,0.25914425,710.62,709.58,1.05251144]
[1735665725276,1.04833133,710.63,709.58,1.05251144]
[1735665725483,1.04833133,710.63,709.34,0.28195223]
[1735665725484,1.04833133,710.56,709.63,1.05251144]
[1735665728181,1.04833133,710.59,709.59,1.05251144]
[1735665729081,1.04833133,710.6,709.6,1.05251144]
[1735665730788,1.04833133,710.63,709.63,1.05251144]
[1735665731584,1.04833133,710.63,709.35,0.68503583]
[1735665731585,1.04833133,710.63,709.69,1.05251144]
[1735665731981,0.25913234,710.62,709.69,1.05251144]
[1735665732180,1.04833133,710.63,709.69,1.05251144]
[1735665732587,1.04833133,710.57,709.66,1.05251144]
[1735665733183,0.25920863,710.56,709.66,1.05251144]
[1735665733983,1.04833133,710.48,709.38,1.05251144]
[1735665734382,0.25926522,710.47,709.38,1.05251144]
[1735665734789,1.04833133,710.48,709.38,1.05251144]
[1735665735088,1.86821029,710.69,700.97,8.41002819]
[1735665735089,1.04833133,710.44,709.09,1.05251144]
[1735665736686,1.04833133,710.44,708.24,2.14887752]
[1735665736687,1.04833133,710.51,709.04,1.05251144]
[1735665736891,0.25925439,710.5,709.04,1.05251144]
[1735665737087,0.25925439,710.5,709.04,1.33458297]
[1735665737492,0.28149586,710.49,709.04,1.33458297]
[1735665737692,0.25925439,710.48,709.04,1.33458297]
[1735665738097,1.04833133,710.43,709.19,1.05251144]
[1735665738395,0.25925439,710.42,709.19,1.05251144]
[1735665739296,0.25925439,710.42,709.17,1.05251144]
[1735665739495,0.25925439,710.41,709.17,1.05251144]
[1735665739696,0.25925439,710.4,709.17,1.05251144]
[1735665739896,0.28149586,710.49,709.17,1.05251144]
[1735665739897,0.25925439,710.39,709.17,1.05251144]
[1735665740205,0.25925439,710.38,709.17,1.05251144]
[1735665740394,0.25925439,710.37,709.11,1.05251144]
[1735665740595,0.25925439,710.36,709.11,1.05251144]
[1735665740794,0.25925439,710.35,709.11,1.05251144]
[1735665741095,0.25925439,710.34,709.11,1.05251144]
[1735665741800,0.25925439,710.34,709.04,1.33458297]
[1735665743198,0.25925439,710.34,709.04,0.28207153]
[1735665743593,1.47092493,710.35,709.04,0.28207153]
[1735665745498,0.25924502,710.34,709.04,0.28207153]
[1735665745700,0.65724502,710.34,709.04,0.28207153]
[1735665745898,0.398,710.34,709.04,0.28207153]
[1735665754909,0.398,710.34,709.18,1.05251144]
[1735665755519,0.398,710.34,709.19,0.28201187]
[1735665756215,0.398,710.34,709.19,1.33452331]
[1735665757212,0.398,710.34,709.2,1.05251144]
[1735665757516,0.398,710.34,709.21,0.28200391]
[1735665759318,0.398,710.34,709.24,1.05251144]
[1735665760218,0.398,710.34,709.25,0.28198801]
[1735665760415,0.398,710.34,709.25,1.33449945]
[1735665761424,0.398,710.34,709.3,1.05251144]
[1735665761916,0.398,710.34,709.31,0.28196416]
[1735665762524,0.398,710.34,709.36,1.05251144]
[1735665762718,0.28149586,710.49,709.36,1.05251144]
[1735665763724,0.28149586,710.49,709.38,1.05251144]
[1735665763923,0.397,710.48,709.38,1.05251144]
[1735665767431,0.397,710.48,709.42,1.05251144]
[1735665768528,0.397,710.48,709.41,1.05251144]
[1735665769429,0.397,710.48,709.4,1.05251144]
[1735665770534,0.397,710.48,709.38,1.05251144]
[1735665771835,0.397,710.48,709.33,1.05251144]
[1735665773236,0.397,710.48,709.31,0.28196416]
[1735665776038,0.28149586,710.49,709.31,0.28196416]
[1735665776438,0.28149586,710.49,709.31,1.3344756]
[1735665777044,0.397,710.48,709.31,1.3344756]
[1735665777641,0.397,710.48,709.37,1.05251144]
[1735665778939,0.397,710.48,709.35,1.05251144]
[1735665780244,0.397,710.48,709.39,1.05251144]
[1735665781441,0.397,710.48,709.38,1.05251144]
[1735665782044,0.25918731,710.47,709.38,1.05251144]
[1735665782447,0.25918731,710.47,709.4,1.05251144]
[1735665783048,0.25918731,710.47,709.43,1.05251144]
[1735665783549,0.25918764,710.46,709.43,1.05251144]
[1735665783747,0.397,710.48,709.43,1.05251144]
[1735665784151,0.397,710.48,709.44,1.05251144]
[1735665784448,0.2591761,710.47,709.44,1.05251144]
[1735665785246,0.397,710.48,709.44,1.05251144]
[1735665785643,0.25918478,710.47,709.44,1.05251144]
[1735665785843,0.397,710.48,709.44,1.05251144]
[1735665786848,0.397,710.48,709.5,1.05251144]
[1735665787649,0.25918108,710.47,709.5,1.05251144]
[1735665787850,0.397,710.48,709.31,0.28196416]
[1735665787851,0.397,710.48,709.52,1.05251144]
[1735665789251,0.25917907,710.47,709.52,1.05251144]